[Event "13th Senioren-Cup Tegernsee 2025"]
[Site "Rottach-Egern"]
[Date "2025.04.02"]
[Round "5.1"]
[White "Schneider-Zinner, Harald"]
[Black "Kolthoff, Siegmund"]
[Result "1-0"]
[Annotator "RC"]
[ECO "A12"]
[WhiteElo "2327"]
[BlackElo "2121"]
[PlyCount "113"]
[EventDate "2025.03.25"]
[EventType "swiss"]
[EventCountry "GER"]
[SourceTitle "playchess.com"]
[Source "ChessBase"]
[SourceQuality "1"]
[TimeControl "9000+30"]

1. Nf3 {[%emt 0:20:11]} d5 {[%emt 0:20:25]} 2. b3 {[%emt 0:00:22]} Bf5 {[%emt 0:02:44]} 3. Bb2 {[%emt 0:01:44]} e6 {[%emt 0:02:46]} 4. c4 {[%emt 0:00:58]} c6 {[%emt 0:00:18]} 5. g3 {[%emt 0:00:34]} Nd7 {[%emt 0:00:57]} 6. Bg2 {[%emt 0:01:43]} Ngf6 {[%emt 0:02:25]} 7. d3 {[%emt 0:00:53]} h6 {[%emt 0:01:16]} 8. O-O {[%emt 0:00:14]} Be7 {[%emt 0:04:14]} 9. e3 {[%emt 0:03:40]} O-O {[%emt 0:01:10]} 10. Qe2 {[%emt 0:08:12]} Bh7 {[%emt 0:05:37]} 11. Rd1 {[%emt 0:02:19]} a5 {[%emt 0:05:46]} 12. Nc3 {[%emt 0:00:43]} Bc5 {[%emt 0:12:54]} 13. e4 {[%emt 0:15:01]} dxe4 {[%emt 0:05:15]} 14. Nxe4 {[%emt 0:11:22]} Be7 {[%emt 0:08:06]} 15. Nc3 {[%emt 0:03:53]} Qb6 {[%emt 0:09:06]} 16. d4 {[%emt 0:05:19]} Rfe8 {[%emt 0:00:32]} 17. h3 {[%emt 0:04:53]} Qa6 {[%emt 0:07:40]} 18. Qe3 {[%emt 0:02:15]} Rad8 {[%emt 0:02:02]} 19. Ne5 {[%emt 0:06:58]} Qb6 {[%emt 0:02:23]} 20. f4 {[%emt 0:04:21]} Nxe5 {[%emt 0:03:49]} 21. fxe5 {[%emt 0:01:08]} Nd7 {[%emt 0:03:24]} 22. Kh2 {[%emt 0:01:39]} Qc7 {[%emt 0:02:21]} 23. Rf1 {[%emt 0:04:41]} Rf8 {[%emt 0:03:58]} 24. Rae1 {[%emt 0:01:00]} Bg5 {[%emt 0:02:48]} 25. Qe2 {[%emt 0:03:14]} Nb6 {[%emt 0:02:37]} 26. Qf2 {[%emt 0:13:23]} Bd3 {[%emt 0:07:21]} 27. Rg1 {[%emt 0:03:40]} Bg6 {[%emt 0:00:59]} 28. Ne4 {[%emt 0:07:14]} Be7 {[%emt 0:10:26]} 29. Nd6 {[%emt 0:02:21]} Nd7 {[%emt 0:05:00]} 30. Ba3 {[%emt 0:01:52]} Nb8 {[%emt 0:02:51]} 31. Be4 {[%emt 0:03:32]} Na6 {[%emt 0:24:50]} 32. Qc2 {[%emt 0:01:33]} Bxe4 {[%emt 0:00:00]} 33. Qxe4 {[%emt 0:00:05]} Nb4 {[%emt 0:00:00]} 34. Bxb4 {[%emt 0:00:12]} axb4 {[%emt 0:00:00]} 35. c5 {[%emt 0:00:08]} Ra8 {[%emt 0:00:00]} 36. Rg2 {[%emt 0:01:08]} b6 {[%emt 0:00:00]} 37. Rf1 {[%emt 0:01:56]} Ra7 {[%emt 0:00:00]} 38. Rgf2 {[%emt 0:04:05]} Bxd6 {[%emt 0:00:00]} 39. cxd6 {[%emt 0:00:05]} Qd7 {[%emt 0:00:00]} 40. Rc1 {[%emt 0:01:11]} Rc8 {[%emt 0:00:00]} 41. Rfc2 {[%emt 0:02:44]} c5 {[%emt 0:00:00]} 42. dxc5 {[%emt 0:01:09]} bxc5 {[%emt 0:00:00]} 43. Rxc5 {[%emt 0:01:48]} Rxa2+ {[%emt 0:00:00]} 44. R1c2 {[%emt 0:00:21]} Rxc5 {[%emt 0:00:00]} 45. Rxa2 {[%emt 0:00:08]} g6 {[%emt 0:00:00]} 46. Qxb4 {[%emt 0:07:08]} Rxe5 {[%emt 0:00:00]} 47. Ra8+ {[%emt 0:00:43]} Kg7 {[%emt 0:00:00]} 48. Qd4 {[%emt 0:00:36]} Qb5 {[%emt 0:00:00]} 49. Ra2 {[%emt 0:00:34]} Kg8 {[%emt 0:00:16]} 50. Qf2 {[%emt 0:05:00]} Rf5 {[%emt 0:02:01]} 51. Qd4 {[%emt 0:02:45]} e5 {[%emt 0:00:19]} 52. Qd2 {[%emt 0:00:15]} Qd7 {[%emt 0:01:33]} 53. Qxh6 {[%emt 0:00:08]} Qd8 {[%emt 0:01:23]} 54. Qh4 {[%emt 0:01:37]} Rf6 {[%emt 0:02:01]} 55. d7 {[%emt 0:02:09]} Kg7 {[%emt 0:00:17]} 56. Rd2 {[%emt 0:00:12]} Kf8 {[%emt 0:02:04]} 57. Qxf6 {[%emt 0:00:14]} 1-0

[Event "13th Senioren-Cup Tegernsee 2025"]
[Site "Rottach-Egern"]
[Date "2025.04.02"]
[Round "5.2"]
[White "Belke, Frank"]
[Black "Schrems, Hermann"]
[Result "1-0"]
[Annotator "RC"]
[ECO "D26"]
[WhiteElo "2235"]
[BlackElo "2114"]
[PlyCount "165"]
[EventDate "2025.03.25"]
[EventType "swiss"]
[EventCountry "GER"]
[SourceTitle "playchess.com"]
[Source "ChessBase"]
[SourceQuality "1"]
[TimeControl "9000+30"]

1. d4 {[%emt 0:20:03]} d5 {[%emt 0:20:25]} 2. c4 {[%emt 0:00:02]} dxc4 {[%emt 0:00:04]} 3. Nf3 {[%emt 0:00:06]} Nf6 {[%emt 0:00:28]} 4. e3 {[%emt 0:00:02]} a6 {[%emt 0:00:10]} 5. Bxc4 {[%emt 0:00:09]} e6 {[%emt 0:00:02]} 6. Be2 {[%emt 0:00:20]} Nbd7 {[%emt 0:00:24]} 7. O-O {[%emt 0:00:33]} c5 {[%emt 0:00:11]} 8. Nc3 {[%emt 0:00:13]} Qc7 {[%emt 0:00:48]} 9. Bd2 {[%emt 0:02:07]} b6 {[%emt 0:06:27]} 10. Rc1 {[%emt 0:00:44]} Bb7 {[%emt 0:01:47]} 11. dxc5 {[%emt 0:02:03]} bxc5 {[%emt 0:00:07]} 12. b4 {[%emt 0:04:26]} Be7 {[%emt 0:13:08]} 13. bxc5 {[%emt 0:05:26]} O-O {[%emt 0:01:14]} 14. Na4 {[%emt 0:00:36]} Rfc8 {[%emt 0:07:55]} 15. c6 {[%emt 0:12:14]} Bxc6 {[%emt 0:00:06]} 16. Nd4 {[%emt 0:00:05]} Qb7 {[%emt 0:09:14]} 17. Nxc6 {[%emt 0:00:56]} Rxc6 {[%emt 0:00:02]} 18. Bf3 {[%emt 0:05:41]} Nd5 {[%emt 0:00:32]} 19. Nc3 {[%emt 0:04:23]} N7f6 {[%emt 0:01:10]} 20. Nxd5 {[%emt 0:01:37]} exd5 {[%emt 0:00:20]} 21. Rxc6 {[%emt 0:16:09]} Qxc6 {[%emt 0:00:07]} 22. Qa1 {[%emt 0:00:22]} Ne4 {[%emt 0:02:11]} 23. Rc1 {[%emt 0:00:46]} Qe6 {[%emt 0:01:30]} 24. Be1 {[%emt 0:00:47]} Ng5 {[%emt 0:09:11]} 25. Be2 {[%emt 0:01:43]} Bf6 {[%emt 0:07:12]} 26. Bc3 {[%emt 0:00:19]} Rc8 {[%emt 0:13:27]} 27. Bxf6 {[%emt 0:00:58]} Rxc1+ {[%emt 0:00:07]} 28. Qxc1 {[%emt 0:00:01]} gxf6 {[%emt 0:00:07]} 29. Qc2 {[%emt 0:05:52]} Kg7 {[%emt 0:00:44]} 30. h3 {[%emt 0:00:31]} Ne4 {[%emt 0:00:57]} 31. Qd3 {[%emt 0:00:49]} Qc6 {[%emt 0:09:10]} 32. Qxa6 {[%emt 0:08:06]} Qc1+ {[%emt 0:00:13]} 33. Bf1 {[%emt 0:00:03]} Qa1 {[%emt 0:04:19]} 34. Qe2 {[%emt 0:09:00]} Nc3 {[%emt 0:00:16]} 35. Qg4+ {[%emt 0:00:05]} Kf8 {[%emt 0:00:13]} 36. Qb4+ {[%emt 0:01:27]} Kg7 {[%emt 0:00:12]} 37. g3 {[%emt 0:01:48]} Nxa2 {[%emt 0:05:35]} 38. Qa5 {[%emt 0:01:13]} Qb1 {[%emt 0:08:48]} 39. Qxd5 {[%emt 0:00:31]} Nc3 {[%emt 0:02:12]} 40. Qc4 {[%emt 0:00:33]} Qe1 {[%emt 0:00:26]} 41. Kg2 {[%emt 0:01:44]} Qd2 {[%emt 0:02:44]} 42. Qg4+ {[%emt 0:02:46]} Kf8 {[%emt 0:00:12]} 43. Bc4 {[%emt 0:01:12]} Nd1 {[%emt 0:02:14]} 44. Qf3 {[%emt 0:00:52]} Kg7 {[%emt 0:00:31]} 45. Bb3 {[%emt 0:02:10]} Nc3 {[%emt 0:00:08]} 46. Qh5 {[%emt 0:01:02]} Qd7 {[%emt 0:00:34]} 47. Bc2 {[%emt 0:04:27]} Qd5+ {[%emt 0:00:15]} 48. Qxd5 {[%emt 0:00:08]} Nxd5 {[%emt 0:00:01]} 49. Be4 {[%emt 0:00:31]} Ne7 {[%emt 0:00:33]} 50. Kf3 {[%emt 0:00:50]} h6 {[%emt 0:01:13]} 51. Ke2 {[%emt 0:00:10]} Kf8 {[%emt 0:01:28]} 52. Kd3 {[%emt 0:00:12]} Nc8 {[%emt 0:01:24]} 53. Kd4 {[%emt 0:00:14]} Ke7 {[%emt 0:01:12]} 54. Kc5 {[%emt 0:00:34]} Nd6 {[%emt 0:01:02]} 55. Bd3 {[%emt 0:00:08]} Ne8 {[%emt 0:03:38]} 56. Be4 {[%emt 0:00:25]} Nd6 {[%emt 0:00:18]} 57. Bd5 {[%emt 0:00:11]} Ne8 {[%emt 0:02:24]} 58. e4 {[%emt 0:00:22]} Nd6 {[%emt 0:00:16]} 59. Kd4 {[%emt 0:03:17]} Nb5+ {[%emt 0:03:24]} 60. Ke3 {[%emt 0:00:11]} Nd6 {[%emt 0:01:13]} 61. Kf4 {[%emt 0:00:18]} Ne8 {[%emt 0:01:09]} 62. Kg4 {[%emt 0:00:31]} Ng7 {[%emt 0:00:08]} 63. f4 {[%emt 0:02:58]} Kf8 {[%emt 0:00:16]} 64. Bc4 {[%emt 0:00:32]} Ke7 {[%emt 0:00:10]} 65. f5 {[%emt 0:01:20]} Kf8 {[%emt 0:06:16]} 66. Bb5 {[%emt 0:00:06]} Ke7 {[%emt 0:00:14]} 67. Kf4 {[%emt 0:00:15]} Nh5+ {[%emt 0:00:10]} 68. Kf3 {[%emt 0:00:08]} Ng7 {[%emt 0:00:05]} 69. g4 {[%emt 0:00:13]} h5 {[%emt 0:01:11]} 70. Ke3 {[%emt 0:00:06]} Kd6 {[%emt 0:01:55]} 71. Kd4 {[%emt 0:01:08]} Ke7 {[%emt 0:01:17]} 72. Kd5 {[%emt 0:00:08]} hxg4 {[%emt 0:00:44]} 73. hxg4 {[%emt 0:00:08]} Ne8 {[%emt 0:03:53]} 74. Bxe8 {[%emt 0:00:25]} Kxe8 {[%emt 0:00:11]} 75. Kd6 {[%emt 0:00:00]} Kd8 {[%emt 0:00:05]} 76. e5 {[%emt 0:00:16]} fxe5 {[%emt 0:00:05]} 77. Kxe5 {[%emt 0:00:05]} Ke7 {[%emt 0:00:10]} 78. f6+ {[%emt 0:02:12]} Ke8 {[%emt 0:01:58]} 79. Kd6 {[%emt 0:00:28]} Kd8 {[%emt 0:00:01]} 80. Kc6 {[%emt 0:00:35]} Kc8 {[%emt 0:00:02]} 81. g5 {[%emt 0:00:41]} Kd8 {[%emt 0:00:05]} 82. Kd6 {[%emt 0:00:05]} Ke8 {[%emt 0:00:04]} 83. Kc7 {[%emt 0:00:08]} 1-0

[Event "13th Senioren-Cup Tegernsee 2025"]
[Site "Rottach-Egern"]
[Date "2025.04.02"]
[Round "5.3"]
[White "Lindam, Ingo"]
[Black "Pieper, Thomas"]
[Result "1/2-1/2"]
[Annotator "RC"]
[ECO "D00"]
[WhiteElo "2151"]
[BlackElo "2178"]
[PlyCount "44"]
[EventDate "2025.03.25"]
[EventType "swiss"]
[EventCountry "GER"]
[SourceTitle "playchess.com"]
[Source "ChessBase"]
[SourceQuality "1"]
[TimeControl "9000+30"]

1. d4 {[%emt 0:20:02]} Nf6 {[%emt 0:20:22]} 2. Bg5 {[%emt 0:00:11]} g6 {[%emt 0:00:47]} 3. Bxf6 {[%emt 0:04:27]} exf6 {[%emt 0:00:06]} 4. e3 {[%emt 0:00:46]} d5 {[%emt 0:00:29]} 5. c4 {[%emt 0:01:42]} dxc4 {[%emt 0:00:26]} 6. Bxc4 {[%emt 0:00:15]} Bd6 {[%emt 0:00:16]} 7. Nc3 {[%emt 0:08:03]} c6 {[%emt 0:00:26]} 8. Qc2 {[%emt 0:08:32]} Nd7 {[%emt 0:13:16]} 9. h4 {[%emt 0:01:43]} h5 {[%emt 0:02:00]} 10. Nf3 {[%emt 0:06:22]} Kf8 {[%emt 0:03:43]} 11. O-O-O {[%emt 0:07:12]} Kg7 {[%emt 0:00:41]} 12. Ne4 {[%emt 0:06:40]} Be7 {[%emt 0:08:38]} 13. d5 {[%emt 0:06:50]} cxd5 {[%emt 0:01:48]} 14. Bxd5 {[%emt 0:03:56]} Qe8 {[%emt 0:00:57]} 15. Nd4 {[%emt 0:04:54]} Nb6 {[%emt 0:08:15]} 16. Bb3 {[%emt 0:00:55]} a5 {[%emt 0:02:24]} 17. a3 {[%emt 0:05:59]} Bg4 {[%emt 0:01:05]} 18. f3 {[%emt 0:02:03]} Rc8 {[%emt 0:00:31]} 19. Nc3 {[%emt 0:00:19]} Bd7 {[%emt 0:00:30]} 20. Kb1 {[%emt 0:06:12]} Bc5 {[%emt 0:21:49]} 21. Qd3 {[%emt 0:04:03]} f5 {[%emt 0:09:44]} 22. e4 {[%emt 0:07:10]} Qe5 {[%emt 0:16:00]} 1/2-1/2

[Event "13th Senioren-Cup Tegernsee 2025"]
[Site "Rottach-Egern"]
[Date "2025.04.02"]
[Round "5.4"]
[White "Schoetzig, Detlef"]
[Black "Hess, Christian"]
[Result "0-1"]
[Annotator "RC"]
[ECO "B13"]
[WhiteElo "2106"]
[BlackElo "2168"]
[PlyCount "120"]
[EventDate "2025.03.25"]
[EventType "swiss"]
[EventCountry "GER"]
[SourceTitle "playchess.com"]
[Source "ChessBase"]
[SourceQuality "1"]
[TimeControl "9000+30"]

1. d4 {[%emt 0:20:21]} d5 {[%emt 0:20:20]} 2. Nf3 {[%emt 0:00:30]} Nf6 {[%emt 0:00:21]} 3. Bf4 {[%emt 0:00:55]} c5 {[%emt 0:00:40]} 4. e3 {[%emt 0:00:45]} Nc6 {[%emt 0:00:33]} 5. Nc3 {[%emt 0:00:33]} cxd4 {[%emt 0:31:35]} 6. exd4 {[%emt 0:00:08]} Bg4 {[%emt 0:01:16]} 7. Qd2 {[%emt 0:01:53]} Bxf3 {[%emt 0:04:22]} 8. gxf3 {[%emt 0:00:03]} e6 {[%emt 0:00:36]} 9. a3 {[%emt 0:06:02]} Be7 {[%emt 0:04:40]} 10. Rg1 {[%emt 0:01:52]} Nh5 {[%emt 0:11:46]} 11. Be3 {[%emt 0:00:28]} Bd6 {[%emt 0:12:06]} 12. O-O-O {[%emt 0:12:44]} a6 {[%emt 0:06:18]} 13. Be2 {[%emt 0:08:47]} g6 {[%emt 0:07:09]} 14. Rde1 {[%emt 0:25:46]} Qc7 {[%emt 0:10:00]} 15. Bf1 {[%emt 0:05:12]} O-O-O {[%emt 0:04:29]} 16. h4 {[%emt 0:12:35]} Kb8 {[%emt 0:01:18]} 17. Kb1 {[%emt 0:02:58]} Qa5 {[%emt 0:08:20]} 18. Rd1 {[%emt 0:04:54]} Rc8 {[%emt 0:01:43]} 19. Na2 {[%emt 0:03:14]} Qb6 {[%emt 0:05:19]} 20. Ka1 {[%emt 0:03:22]} Na5 {[%emt 0:00:50]} 21. Nb4 {[%emt 0:01:40]} Nc4 {[%emt 0:03:46]} 22. Bxc4 {[%emt 0:00:08]} Rxc4 {[%emt 0:00:08]} 23. c3 {[%emt 0:00:58]} Rhc8 {[%emt 0:00:37]} 24. Rc1 {[%emt 0:03:44]} a5 {[%emt 0:02:53]} 25. Nd3 {[%emt 0:04:38]} Qb5 {[%emt 0:00:39]} 26. Rc2 {[%emt 0:12:03]} b6 {[%emt 0:01:12]} 27. Rb1 {[%emt 0:02:18]} Qd7 {[%emt 0:02:02]} 28. Ka2 {[%emt 0:01:02]} Ra4 {[%emt 0:02:56]} 29. b4 {[%emt 0:04:42]} axb4 {[%emt 0:02:56]} 30. cxb4 {[%emt 0:00:15]} Rxc2+ {[%emt 0:01:45]} 31. Qxc2 {[%emt 0:00:03]} Ra7 {[%emt 0:00:29]} 32. Rb3 {[%emt 0:01:22]} Rc7 {[%emt 0:05:13]} 33. Rc3 {[%emt 0:00:10]} Rxc3 {[%emt 0:00:14]} 34. Qxc3 {[%emt 0:00:02]} Kb7 {[%emt 0:00:16]} 35. Qb3 {[%emt 0:04:00]} Ng7 {[%emt 0:03:08]} 36. Nc5+ {[%emt 0:02:19]} bxc5 {[%emt 0:01:04]} 37. bxc5+ {[%emt 0:00:12]} Kc8 {[%emt 0:00:26]} 38. cxd6 {[%emt 0:01:04]} Qxd6 {[%emt 0:00:07]} 39. Qb5 {[%emt 0:01:18]} Qc7 {[%emt 0:00:30]} 40. Kb3 {[%emt 0:01:59]} Nf5 {[%emt 0:00:41]} 41. a4 {[%emt 0:05:13]} Qb7 {[%emt 0:01:17]} 42. Kb4 {[%emt 0:00:30]} Nxh4 {[%emt 0:00:35]} 43. Kc5 {[%emt 0:00:39]} Qxb5+ {[%emt 0:02:32]} 44. axb5 {[%emt 0:00:02]} Kb7 {[%emt 0:00:23]} 45. Bf4 {[%emt 0:02:01]} Nf5 {[%emt 0:00:14]} 46. Be5 {[%emt 0:03:41]} h5 {[%emt 0:00:14]} 47. b6 {[%emt 0:01:07]} h4 {[%emt 0:00:33]} 48. Bf6 {[%emt 0:01:59]} h3 {[%emt 0:00:15]} 49. Be5 {[%emt 0:00:01]} Nh4 {[%emt 0:01:04]} 50. Kd6 {[%emt 0:00:43]} Nxf3 {[%emt 0:00:26]} 51. Bg3 {[%emt 0:00:05]} h2 {[%emt 0:00:15]} 52. Bxh2 {[%emt 0:00:03]} Nxh2 {[%emt 0:00:14]} 53. Ke7 {[%emt 0:00:05]} Nf3 {[%emt 0:01:04]} 54. Kxf7 {[%emt 0:00:10]} e5 {[%emt 0:01:36]} 55. dxe5 {[%emt 0:00:13]} Nxe5+ {[%emt 0:00:08]} 56. Ke6 {[%emt 0:00:06]} d4 {[%emt 0:00:13]} 57. Kxe5 {[%emt 0:00:09]} d3 {[%emt 0:00:08]} 58. f4 {[%emt 0:00:18]} d2 {[%emt 0:00:09]} 59. Kf6 {[%emt 0:00:27]} d1=Q {[%emt 0:00:12]} 60. Kxg6 {[%emt 0:00:00]} Qg4+ {[%emt 0:00:12]} 0-1

[Event "13th Senioren-Cup Tegernsee 2025"]
[Site "Rottach-Egern"]
[Date "2025.04.02"]
[Round "5.5"]
[White "Mueller, Matthias-Michael"]
[Black "Cordts, Ingo"]
[Result "1/2-1/2"]
[Annotator "RC"]
[ECO "D02"]
[WhiteElo "2307"]
[BlackElo "2151"]
[PlyCount "21"]
[EventDate "2025.03.25"]
[EventType "swiss"]
[EventCountry "GER"]
[SourceTitle "playchess.com"]
[Source "ChessBase"]
[SourceQuality "1"]
[TimeControl "9000+30"]

1. d4 {[%emt 0:20:05]} d5 {[%emt 0:20:08]} 2. Nf3 {[%emt 0:00:15]} Nf6 {[%emt 0:00:12]} 3. Bf4 {[%emt 0:00:35]} c5 {[%emt 0:00:47]} 4. e3 {[%emt 0:00:19]} Nc6 {[%emt 0:00:27]} 5. c3 {[%emt 0:00:38]} Qb6 {[%emt 0:00:22]} 6. Qb3 {[%emt 0:00:11]} c4 {[%emt 0:00:23]} 7. Qc2 {[%emt 0:00:48]} Bf5 {[%emt 0:00:20]} 8. Qc1 {[%emt 0:00:57]} h6 {[%emt 0:00:20]} 9. Nbd2 {[%emt 0:01:07]} e6 {[%emt 0:00:15]} 10. Be2 {[%emt 0:00:56]} Be7 {[%emt 0:00:21]} 11. O-O {[%emt 0:01:25]} 1/2-1/2

[Event "13th Senioren-Cup Tegernsee 2025"]
[Site "Rottach-Egern"]
[Date "2025.04.02"]
[Round "5.6"]
[White "Freundorfer, Josef"]
[Black "Heinbuch, Detlef Ulrich"]
[Result "0-1"]
[Annotator "RC"]
[ECO "D00"]
[WhiteElo "2068"]
[BlackElo "2263"]
[PlyCount "52"]
[EventDate "2025.03.25"]
[EventType "swiss"]
[EventCountry "GER"]
[SourceTitle "playchess.com"]
[Source "ChessBase"]
[SourceQuality "1"]
[TimeControl "9000+30"]

1. d4 {[%emt 0:20:07]} Nf6 {[%emt 0:20:23]} 2. Nc3 {[%emt 0:00:16]} d5 {[%emt 0:00:13]} 3. Bf4 {[%emt 0:00:17]} e6 {[%emt 0:01:52]} 4. a3 {[%emt 0:01:31]} c5 {[%emt 0:06:09]} 5. e3 {[%emt 0:00:29]} a6 {[%emt 0:00:31]} 6. Nf3 {[%emt 0:00:52]} Nc6 {[%emt 0:00:29]} 7. Be2 {[%emt 0:01:30]} Be7 {[%emt 0:03:38]} 8. h3 {[%emt 0:02:46]} O-O {[%emt 0:06:04]} 9. O-O {[%emt 0:00:29]} b5 {[%emt 0:11:33]} 10. dxc5 {[%emt 0:06:04]} Bxc5 {[%emt 0:00:11]} 11. Bd3 {[%emt 0:03:48]} Bd6 {[%emt 0:16:30]} 12. Bxd6 {[%emt 0:08:53]} Qxd6 {[%emt 0:00:05]} 13. e4 {[%emt 0:00:41]} d4 {[%emt 0:04:49]} 14. Ne2 {[%emt 0:04:07]} e5 {[%emt 0:10:59]} 15. Nd2 {[%emt 0:06:44]} Nd7 {[%emt 0:17:18]} 16. f4 {[%emt 0:26:21]} exf4 {[%emt 0:01:11]} 17. Nxf4 {[%emt 0:04:20]} Nde5 {[%emt 0:00:14]} 18. Qh5 {[%emt 0:02:29]} Be6 {[%emt 0:03:38]} 19. Nxe6 {[%emt 0:04:46]} fxe6 {[%emt 0:00:54]} 20. Qe2 {[%emt 0:06:22]} Ng6 {[%emt 0:06:16]} 21. Nf3 {[%emt 0:09:31]} Rf6 {[%emt 0:05:09]} 22. Rae1 {[%emt 0:07:11]} Raf8 {[%emt 0:03:33]} 23. Qf2 {[%emt 0:06:33]} Nce5 {[%emt 0:02:09]} 24. Qg3 {[%emt 0:00:48]} Nf4 {[%emt 0:04:04]} 25. Nxe5 {[%emt 0:05:40]} Qxe5 {[%emt 0:00:02]} 26. Qh2 {[%emt 0:00:53]} Nxd3 {[%emt 0:01:17]} 0-1

[Event "13th Senioren-Cup Tegernsee 2025"]
[Site "Rottach-Egern"]
[Date "2025.04.02"]
[Round "5.7"]
[White "Loew, Gerald"]
[Black "Ernst, Michael"]
[Result "1/2-1/2"]
[Annotator "RC"]
[ECO "B10"]
[WhiteElo "2175"]
[BlackElo "2035"]
[PlyCount "30"]
[EventDate "2025.03.25"]
[EventType "swiss"]
[EventCountry "GER"]
[SourceTitle "playchess.com"]
[Source "ChessBase"]
[SourceQuality "1"]
[TimeControl "9000+30"]

1. c4 {[%emt 0:20:05]} c6 {[%emt 0:20:11]} 2. e4 {[%emt 0:00:26]} d5 {[%emt 0:00:19]} 3. exd5 {[%emt 0:00:08]} cxd5 {[%emt 0:00:08]} 4. cxd5 {[%emt 0:00:14]} Nf6 {[%emt 0:00:30]} 5. Nc3 {[%emt 0:00:13]} Nxd5 {[%emt 0:00:56]} 6. Bc4 {[%emt 0:00:33]} Nb6 {[%emt 0:00:56]} 7. Bb3 {[%emt 0:00:30]} Nc6 {[%emt 0:00:30]} 8. Nf3 {[%emt 0:00:30]} Bf5 {[%emt 0:00:30]} 9. d4 {[%emt 0:00:30]} e6 {[%emt 0:00:30]} 10. O-O {[%emt 0:00:30]} Be7 {[%emt 0:00:30]} 11. a4 {[%emt 0:00:30]} O-O {[%emt 0:00:30]} 12. a5 {[%emt 0:10:08]} Nd5 {[%emt 2:11:00]} 13. Nxd5 {[%emt 0:08:03]} exd5 {[%emt 0:00:00]} 14. Bd2 {[%emt 0:00:36]} Rc8 {[%emt 0:00:00]} 15. Bc3 {[%emt 0:02:36]} Bb4 {[%emt 0:00:00]} 1/2-1/2

[Event "13th Senioren-Cup Tegernsee 2025"]
[Site "Rottach-Egern"]
[Date "2025.04.02"]
[Round "5.8"]
[White "Kirszenberg, Marc"]
[Black "Schwarz, Arnd-Ruediger"]
[Result "1/2-1/2"]
[Annotator "RC"]
[ECO "E61"]
[WhiteElo "2066"]
[BlackElo "2120"]
[PlyCount "27"]
[EventDate "2025.03.25"]
[EventType "swiss"]
[EventCountry "GER"]
[SourceTitle "playchess.com"]
[Source "ChessBase"]
[SourceQuality "1"]
[TimeControl "9000+30"]

1. d4 {[%emt 0:20:03]} Nf6 {[%emt 0:20:06]} 2. c4 {[%emt 0:00:04]} g6 {[%emt 0:00:05]} 3. Nc3 {[%emt 0:00:03]} Bg7 {[%emt 0:00:04]} 4. Nf3 {[%emt 0:00:18]} O-O {[%emt 0:00:07]} 5. Bf4 {[%emt 0:00:07]} d6 {[%emt 0:00:05]} 6. e3 {[%emt 0:00:38]} Nc6 {[%emt 0:00:16]} 7. h3 {[%emt 0:00:49]} Nd7 {[%emt 0:00:19]} 8. Be2 {[%emt 0:00:07]} e5 {[%emt 0:00:08]} 9. Bh2 {[%emt 0:00:04]} f5 {[%emt 0:00:17]} 10. O-O {[%emt 0:04:48]} e4 {[%emt 0:00:54]} 11. Nd2 {[%emt 0:00:25]} g5 {[%emt 0:04:21]} 12. Rc1 {[%emt 0:04:38]} Nf6 {[%emt 0:01:04]} 13. a3 {[%emt 0:01:49]} Kh8 {[%emt 0:17:21]} 14. b4 {[%emt 0:01:07]} 1/2-1/2

[Event "13th Senioren-Cup Tegernsee 2025"]
[Site "Rottach-Egern"]
[Date "2025.04.02"]
[Round "5.9"]
[White "Kannenberg, Karl-Heinz"]
[Black "Pruesse, Horst"]
[Result "1/2-1/2"]
[Annotator "RC"]
[ECO "A34"]
[WhiteElo "2113"]
[BlackElo "2028"]
[PlyCount "34"]
[EventDate "2025.03.25"]
[EventType "swiss"]
[EventCountry "GER"]
[SourceTitle "playchess.com"]
[Source "ChessBase"]
[SourceQuality "1"]
[TimeControl "9000+30"]

1. Nf3 {[%emt 0:20:30]} c5 {[%emt 0:23:54]} 2. c4 {[%emt 0:00:00]} Nf6 {[%emt 0:00:41]} 3. Nc3 {[%emt 0:00:00]} g6 {[%emt 0:00:34]} 4. g3 {[%emt 0:00:23]} Bg7 {[%emt 0:00:03]} 5. Bg2 {[%emt 0:00:22]} O-O {[%emt 0:01:29]} 6. O-O {[%emt 0:04:47]} d5 {[%emt 0:03:29]} 7. cxd5 {[%emt 0:01:50]} Nxd5 {[%emt 0:00:03]} 8. Qb3 {[%emt 0:09:53]} Nb6 {[%emt 0:03:31]} 9. d3 {[%emt 0:02:43]} Nc6 {[%emt 0:06:06]} 10. Na4 {[%emt 0:15:22]} Be6 {[%emt 0:10:06]} 11. Qb5 {[%emt 0:07:10]} Nxa4 {[%emt 0:00:04]} 12. Qxa4 {[%emt 0:00:13]} Qd7 {[%emt 0:01:25]} 13. Qc2 {[%emt 0:12:58]} b6 {[%emt 0:15:40]} 14. Bd2 {[%emt 0:03:45]} Rac8 {[%emt 0:07:52]} 15. Bc3 {[%emt 0:01:21]} Bh6 {[%emt 0:01:33]} 16. Ne5 {[%emt 0:03:22]} Nxe5 {[%emt 0:00:54]} 17. Bxe5 {[%emt 0:00:10]} Bd5 {[%emt 0:01:11]} 1/2-1/2

[Event "13th Senioren-Cup Tegernsee 2025"]
[Site "Rottach-Egern"]
[Date "2025.04.02"]
[Round "5.10"]
[White "Moritz, Hartmut"]
[Black "Mareck, Sascha"]
[Result "1/2-1/2"]
[Annotator "NA RC"]
[ECO "B21"]
[WhiteElo "2001"]
[BlackElo "2112"]
[PlyCount "49"]
[EventDate "2025.03.25"]
[EventType "swiss"]
[EventCountry "GER"]
[SourceTitle "playchess.com"]
[Source "ChessBase"]
[SourceQuality "1"]
[TimeControl "9000+30"]

1. e4 {[%emt 0:20:06]} c5 {[%emt 0:20:06]} 2. d3 {[%emt 0:00:15]} Nc6 {[%emt 0:00:16]} 3. f4 {[%emt 0:00:47]} g6 {[%emt 0:00:16]} 4. Nf3 {[%emt 0:00:13]} Bg7 {[%emt 0:00:33]} 5. Be2 {[%emt 0:00:42]} d6 {[%emt 0:00:29]} 6. O-O {[%emt 0:00:49]} e6 {[%emt 0:00:29]} 7. c3 {[%emt 0:03:40]} Nge7 {[%emt 0:00:56]} 8. Be3 {[%emt 0:02:28]} O-O {[%emt 0:01:41]} 9. a4 {[%emt 0:05:59]} b6 {[%emt 0:06:04]} 10. Na3 {[%emt 0:01:44]} Bb7 {[%emt 0:01:42]} 11. Rb1 {[%emt 0:20:14]} d5 {[%emt 0:11:30]} 12. Qc2 {[%emt 0:01:06]} Rc8 {[%emt 0:02:18]} 13. Bf2 {[%emt 0:13:07]} Qd7 {[%emt 0:13:43]} 14. Rbd1 {[%emt 0:06:06]} Rfd8 {[%emt 0:24:10]} 15. h3 {[%emt 0:04:48]} d4 {[%emt 0:04:57]} 16. Nc4 {[%emt 0:04:09]} dxc3 {[%emt 0:18:38]} 17. bxc3 {[%emt 0:00:18]} Ba6 {[%emt 0:00:16]} 18. Nce5 {[%emt 0:07:51]} Qb7 {[%emt 0:04:40]} 19. Nxf7 {[%emt 0:06:54]} Kxf7 {[%emt 0:02:42]} 20. Ng5+ {[%emt 0:00:15]} Kg8 {[%emt 0:00:17]} 21. Bg4 {[%emt 0:00:38]} Rf8 {[%emt 0:03:38]} 22. Bxe6+ {[%emt 0:05:24]} Kh8 {[%emt 0:00:08]} 23. f5 {[%emt 0:08:40]} gxf5 {[%emt 0:05:16]} 24. exf5 {[%emt 0:14:18]} Ng8 {[%emt 0:06:33]} 25. g4 {[%emt 0:15:07]} 1/2-1/2